fUST/lending_fUST_20251114
["ID","MTS","AMOUNT","RATE_DAILY","PERIOD"]
[393878704,1763065747105,-500.71451375,0.00031237,2]
[393878705,1763065747130,-150.0,0.00031296,2]
[393878706,1763065747150,-7984.05377809,0.00033,30]
[393878707,1763065747170,-3433.52040382,0.0003301,3]
[393878708,1763065747188,-337.17640039,0.00033261,7]
[393878709,1763065747210,-163.79,0.00034141,2]
[393878710,1763065747231,-1600.0,0.00035572,3]
[393878711,1763065747251,-300.0,0.00035577,3]
[393878712,1763065747271,-1600.0,0.00035577,3]
[393878713,1763065747289,-460.21246771,0.00035578,2]
[393878714,1763065747313,-300.0,0.00035578,3]
[393878715,1763065747334,-400.0,0.00035578,3]
[393878716,1763065747354,-4767.3122385,0.00035579,2]
[393878717,1763065748136,-14093.53225689,0.00035579,2]
[393878718,1763065748157,-228.3716463,0.00035616,2]
[393878719,1763065748177,-500.0,0.00035932,15]
[393878720,1763065748200,-500.0,0.00035932,15]
[393878721,1763065748225,-500.0,0.00035932,15]
[393878722,1763065748246,-500.0,0.00035932,15]
[393878723,1763065748271,-500.0,0.00035932,7]
[393878724,1763065748293,-500.0,0.00035932,15]
[393878725,1763065748316,-500.0,0.00035932,15]
[393878726,1763065748335,-500.0,0.00035932,15]
[393878727,1763065748357,-500.0,0.00035932,15]
[393878728,1763065748379,-500.0,0.00035932,15]
[393878729,1763065748404,-500.0,0.00035932,7]
[393878730,1763065748426,-500.0,0.00035932,15]
[393878731,1763065748446,-500.0,0.00035932,15]
[393878732,1763065748467,-500.0,0.00035932,15]
[393878733,1763065748487,-500.0,0.00035932,15]
[393878734,1763065748508,-500.0,0.00035932,15]
[393878735,1763065748528,-500.0,0.00035932,15]
[393878736,1763065748559,-217.26398628,0.00035932,15]
[393878737,1763065748583,-231.13405827,0.00035932,15]
[393878738,1763065759145,-1832.71,0.00035922,10]
[393878739,1763065759167,-53.67254763,0.00035932,15]
[393878740,1763065759192,-500.0,0.00035932,15]
[393878741,1763065759212,-607.89329977,0.00035932,15]
[393878742,1763065759232,-397.14951968,0.00035932,15]
[393878743,1763065759253,-500.0,0.00035932,15]
[393878744,1763065759275,-500.0,0.00035932,15]
[393878745,1763065759296,-500.0,0.00035932,15]
[393878746,1763065759322,-500.0,0.00035932,7]
[393878747,1763065759343,-500.0,0.00035932,15]
[393878748,1763065759364,-500.0,0.00035932,15]
[393878749,1763065759385,-500.0,0.00035932,15]
[393878750,1763065759406,-500.0,0.00035932,15]
[393878751,1763065759430,-500.0,0.00035932,7]
[393878752,1763065759450,-500.0,0.00035932,15]
[393878753,1763065759471,-500.0,0.00035932,15]
[393878754,1763065759491,-500.0,0.00035932,15]
[393878755,1763065759512,-500.0,0.00035932,15]
[393878756,1763065759536,-500.0,0.00035932,7]
[393878757,1763065759558,-500.0,0.00035932,15]
[393878758,1763065759579,-500.0,0.00035932,15]
[393878759,1763065759598,-500.0,0.00035932,15]
[393878760,1763065759618,-650.60934881,0.00035932,15]
[393878761,1763065759638,-500.0,0.00035932,15]
[393878762,1763065759662,-500.0,0.00035932,7]
[393878763,1763065759682,-500.0,0.00035932,15]
[393878764,1763065759702,-403.27515693,0.00035932,15]
[393878765,1763065759722,-500.0,0.00035932,15]
[393878766,1763065759747,-500.0,0.00035932,7]
[393878767,1763065759768,-500.0,0.00035932,15]
[393878768,1763065759790,-500.0,0.00035932,15]
[393878769,1763065759811,-500.0,0.00035932,15]
[393878770,1763065759838,-500.0,0.00035932,15]
[393878771,1763065759864,-500.0,0.00035932,7]
[393878772,1763065759887,-500.0,0.00035932,15]
[393878773,1763065759909,-500.0,0.00035932,15]
[393878774,1763065759933,-500.0,0.00035932,7]
[393878775,1763065759954,-500.0,0.00035932,15]
[393878776,1763065759973,-500.0,0.00035932,15]
[393878777,1763065759994,-500.0,0.00035932,15]
[393878778,1763065760017,-500.0,0.00035932,15]
[393878779,1763065760043,-500.0,0.00035932,7]
[393878780,1763065760064,-500.0,0.00035932,15]
[393878781,1763065760088,-500.0,0.00035932,15]
[393878782,1763065760109,-500.0,0.00035932,15]
[393878783,1763065760133,-110.27588718,0.00035932,7]
[393878784,1763065762107,-389.72411282,0.00035932,7]
[393878785,1763065762132,-500.0,0.00035932,15]
[393878786,1763065762154,-500.0,0.00035932,15]
[393878787,1763065762177,-500.0,0.00035932,15]
[393878788,1763065762202,-500.0,0.00035932,7]
[393878789,1763065762224,-500.0,0.00035932,15]
[393878790,1763065762249,-500.0,0.00035932,7]
[393878791,1763065762271,-500.0,0.00035932,15]
[393878792,1763065762292,-500.0,0.00035932,15]
[393878793,1763065762313,-500.0,0.00035932,15]
[393878794,1763065762340,-500.0,0.00035932,7]
[393878795,1763065762362,-500.0,0.00035932,15]
[393878796,1763065762385,-500.0,0.00035932,7]
[393878797,1763065762410,-500.0,0.00035932,7]
[393878798,1763065762432,-500.0,0.00035932,15]
[393878799,1763065762453,-500.0,0.00035932,15]
[393878800,1763065762478,-500.0,0.00035932,7]
[393878801,1763065762504,-500.0,0.00035932,7]
[393878802,1763065762531,-500.0,0.00035932,15]
[393878803,1763065762554,-500.0,0.00035932,15]
[393878804,1763065762582,-500.0,0.00035932,7]
[393878805,1763065762603,-500.0,0.00035932,15]
[393878806,1763065762631,-500.0,0.00035932,7]
[393878807,1763065762653,-505.91478547,0.00035932,15]
[393878808,1763065762680,-500.0,0.00035932,7]
[393878809,1763065762703,-500.0,0.00035932,15]
[393878810,1763065762727,-554.78847102,0.00035932,15]
[393878811,1763065762753,-500.0,0.00035932,7]
[393878812,1763065762781,-500.0,0.00035932,7]
[393878813,1763065762806,-500.0,0.00035932,7]
[393878814,1763065762832,-500.0,0.00035932,7]
[393878815,1763065762855,-500.0,0.00035932,7]
[393878816,1763065762878,-500.0,0.00035932,7]
[393878817,1763065762901,-500.0,0.00035932,7]
[393878818,1763065762926,-500.0,0.00035932,7]
[393878819,1763065762949,-500.0,0.00035932,7]
[393878820,1763065763079,-500.0,0.00035932,7]
[393878821,1763065763107,-500.0,0.00035932,7]
[393878822,1763065763132,-500.0,0.00035932,7]
[393878823,1763065763156,-500.0,0.00035932,7]
[393878824,1763065763182,-500.0,0.00035932,7]
[393878825,1763065763221,-500.0,0.00035932,7]
[393878826,1763065763248,-500.0,0.00035932,7]
[393878827,1763065763275,-500.0,0.00035932,7]
[393878828,1763065763302,-500.0,0.00035932,7]
[393878829,1763065763332,-500.0,0.00035932,7]
[393878830,1763065763361,-500.0,0.00035932,7]
[393878831,1763065763387,-500.0,0.00035932,7]
[393878832,1763065763412,-500.0,0.00035932,7]
[393878833,1763065763437,-500.0,0.00035932,7]
[393878834,1763065763461,-500.0,0.00035932,7]
[393878835,1763065763487,-500.0,0.00035932,7]
[393878836,1763065763513,-500.0,0.00035932,7]
[393878837,1763065763537,-500.0,0.00035932,7]
[393878838,1763065763561,-500.0,0.00035932,7]
[393878839,1763065763588,-500.0,0.00035932,7]
[393878840,1763065763613,-500.0,0.00035932,7]
[393878841,1763065763638,-500.0,0.00035932,7]
[393878842,1763065763664,-2198.45144668,0.00035932,7]
[393878843,1763065763689,-2198.45144668,0.00035932,7]
[393878844,1763065763713,-2198.45144668,0.00035932,7]
[393878845,1763065763737,-2198.45144668,0.00035932,7]
[393878846,1763065763761,-2198.45144668,0.00035932,7]
[393878847,1763065763786,-2198.45144668,0.00035932,7]
[393878848,1763065763810,-2198.45144668,0.00035932,7]
[393878849,1763065763834,-2198.45144668,0.00035932,7]
[393878850,1763065763858,-2198.45144668,0.00035932,7]
[393878851,1763065763883,-2198.45144668,0.00035932,7]
[393878852,1763065763907,-2198.45144668,0.00035932,7]
[393878853,1763065763931,-2198.45144668,0.00035932,7]
[393878854,1763065763955,-2198.45144668,0.00035932,7]
[393878855,1763065763982,-2198.45144668,0.00035932,7]
[393878856,1763065764017,-2198.45144668,0.00035932,7]
[393878857,1763065764044,-2198.45144668,0.00035932,7]
[393878858,1763065764071,-2198.45144668,0.00035932,7]
[393878859,1763065764098,-2198.45144668,0.00035932,7]
[393878860,1763065764126,-2198.45144668,0.00035932,7]
[393878861,1763065764150,-2198.45144668,0.00035932,7]
[393878862,1763065764178,-2198.45144668,0.00035932,7]
[393878863,1763065764207,-2198.45144668,0.00035932,7]
[393878864,1763065764234,-2198.45144668,0.00035932,7]
[393878865,1763065764261,-2198.45144668,0.00035932,7]
[393878866,1763065764288,-2198.45144668,0.00035932,7]
[393878867,1763065764314,-2198.45144668,0.00035932,7]
[393878868,1763065764344,-2198.45144668,0.00035932,7]
[393878869,1763065764371,-2198.45144668,0.00035932,7]
[393878870,1763065764397,-2198.45144668,0.00035932,7]
[393878871,1763065764423,-2198.45144668,0.00035932,7]
[393878872,1763065764448,-2198.45144668,0.00035932,7]
[393878873,1763065764474,-2198.45144668,0.00035932,7]
[393878874,1763065764497,-500.0,0.00035932,15]
[393878875,1763065764518,-500.0,0.00035932,15]
[393878876,1763065764539,-500.0,0.00035932,15]
[393878877,1763065764561,-500.0,0.00035932,15]
[393878878,1763065764586,-550.06770542,0.00035932,15]
[393878879,1763065764608,-500.0,0.00035932,15]
[393878880,1763065764630,-500.0,0.00035932,15]
[393878881,1763065764650,-500.0,0.00035932,15]
[393878882,1763065764672,-500.0,0.00035932,15]
[393878883,1763065764693,-500.0,0.00035932,15]
[393878884,1763065764714,-500.0,0.00035932,15]
[393878885,1763065764735,-500.0,0.00035932,15]
[393878886,1763065764756,-500.0,0.00035932,15]
[393878887,1763065764779,-500.0,0.00035932,15]
[393878888,1763065764799,-500.0,0.00035932,15]
[393878889,1763065764824,-500.0,0.00035932,15]
[393878890,1763065764844,-500.0,0.00035932,15]
[393878891,1763065764865,-500.0,0.00035932,15]
[393878892,1763065764885,-500.0,0.00035932,15]
[393878893,1763065764907,-500.0,0.00035932,15]
[393878894,1763065764928,-500.0,0.00035932,15]
[393878895,1763065764949,-500.0,0.00035932,15]
[393878896,1763065764970,-350.65719838,0.00035932,15]
[393878897,1763065764992,-500.0,0.00035932,15]
[393878898,1763065765016,-500.0,0.00035932,15]
[393878899,1763065765039,-500.0,0.00035932,15]
[393878900,1763065765060,-500.0,0.00035932,15]
[393878901,1763065765084,-500.0,0.00035932,15]
[393878902,1763065765105,-500.0,0.00035932,15]
[393878903,1763065765126,-500.0,0.00035932,15]
[393878904,1763065765146,-500.0,0.00035932,15]
[393878905,1763065765167,-500.0,0.00035932,15]
[393878906,1763065765188,-500.0,0.00035932,15]
[393878907,1763065765211,-500.0,0.00035932,15]
[393878908,1763065765235,-1802.73018627,0.00035932,7]
[393878909,1763065765259,-1802.73018627,0.00035932,7]
[393878910,1763065765282,-1802.73018627,0.00035932,7]
[393878911,1763065765304,-1802.73018627,0.00035932,7]
[393878912,1763065765331,-1802.73018627,0.00035932,7]
[393878913,1763065765355,-1802.73018627,0.00035932,7]
[393878914,1763065765379,-1802.73018627,0.00035932,7]
[393878915,1763065765403,-1802.73018627,0.00035932,7]
[393878916,1763065765428,-1802.73018627,0.00035932,7]
[393878917,1763065765453,-1802.73018627,0.00035932,7]
[393878918,1763065765473,-500.0,0.00035933,5]
[393878919,1763065765493,-500.0,0.00035933,5]
[393878920,1763065765512,-170.49059877,0.00035933,5]
[393878921,1763065765531,-500.0,0.00035933,5]
[393878922,1763065765550,-500.0,0.00035933,5]
[393878923,1763065765573,-500.0,0.00035933,5]
[393878924,1763065765592,-500.0,0.00035933,5]
[393878925,1763065765613,-500.0,0.00035933,5]
[393878926,1763065765631,-500.0,0.00035933,3]
[393878927,1763065765649,-500.0,0.00035933,5]
[393878928,1763065765668,-500.0,0.00035933,5]
[393878929,1763065765687,-50000.0,0.00035933,2]
[393878930,1763065765707,-2261.49855793,0.00036009,2]
[393878931,1763065765728,-384.21958084,0.00036019,2]
[393878932,1763065765748,-500.0,0.00036108,7]
[393878933,1763065765767,-500.0,0.00036108,7]
[393878934,1763065765785,-167.63089545,0.00036108,7]
[393878935,1763065765805,-89240.1977277,0.00036109,3]
[393878936,1763065765826,-969.85759776,0.00036109,3]
[393878937,1763065765848,-150.35031034,0.00036121,5]
[393878938,1763065765867,-500.0,0.00036173,5]
[393878939,1763065765887,-500.0,0.00036173,5]
[393878940,1763065766001,-500.0,0.00036173,5]
[393878941,1763065766020,-158.33784733,0.00036173,5]
[393878942,1763065766041,-500.51404501,0.00036173,5]
[393878943,1763065766060,-500.0,0.00036173,5]
[393878944,1763065766082,-231.03472063,0.00036173,5]
[393878945,1763065766100,-500.0,0.00036173,5]
[393878946,1763065766118,-563.55050698,0.00036173,5]
[393878947,1763065766137,-577.71772446,0.00036173,5]
[393878948,1763065766155,-500.0,0.00036173,5]
[393878949,1763065766174,-500.0,0.00036173,5]
[393878950,1763065766193,-505.76688572,0.00036173,5]
[393878951,1763065766212,-500.0,0.00036206,15]
[393878952,1763065766232,-151.0,0.00036393,31]
[393878953,1763065766254,-151.0,0.00036393,31]
[393878954,1763065766275,-151.0,0.00036393,31]
[393878955,1763065766294,-298.790307,0.00036393,31]
[393878956,1763065766314,-151.0,0.00036393,31]
[393878957,1763065766337,-841.908488,0.00036393,31]
[393878958,1763065766357,-298.790307,0.00036393,31]
[393878959,1763065766378,-841.908488,0.00036393,31]
[393878960,1763065766398,-298.790307,0.00036393,31]
[393878961,1763065766419,-841.908488,0.00036393,31]
[393878962,1763065766439,-298.790307,0.00036393,31]
[393878963,1763065766460,-151.0,0.00036393,31]
[393878964,1763065766481,-841.908488,0.00036393,31]
[393878965,1763065766501,-151.0,0.00036393,31]
[393878966,1763065766520,-500.0,0.0003648,15]
[393878967,1763065766540,-1000.0,0.00036481,5]
[393878968,1763065766560,-1000.0,0.00036481,5]
[393878969,1763065766584,-1000.0,0.00036481,5]
[393878970,1763065766604,-729.31571795,0.00036481,5]
[393878971,1763065766624,-669.92936332,0.00036481,5]
[393878972,1763065766645,-1000.0,0.00036481,5]
[393878973,1763065766666,-1000.0,0.00036481,3]
[393878974,1763065766687,-1000.0,0.00036481,5]
[393878975,1763065766706,-1000.0,0.00036481,5]
[393878976,1763065766725,-274.0,0.00036648,2]
[393878977,1763065766746,-151.0,0.00036668,7]
[393878978,1763065766768,-151.0,0.00036668,30]
[393878979,1763065766788,-158.831124,0.00036668,31]
[393878980,1763065766808,-44620.0988638,0.00036711,3]
[393878981,1763065766830,-484.92879888,0.00036711,3]
[393878982,1763065766849,-1000.0,0.00036721,5]
[393878983,1763065766868,-1000.0,0.00036721,5]
[393878984,1763065766886,-381.26056521,0.00036721,5]
[393878985,1763065766905,-1000.0,0.00036721,5]
[393878986,1763065766924,-1000.0,0.00036721,5]
[393878987,1763065766944,-1000.0,0.00036721,5]
[393878988,1763065766963,-500.0,0.00036754,15]
[393878989,1763065766984,-159.32,0.00036789,60]
[393878990,1763065767010,-337.33072109,0.00036812,2]
[393878991,1763065767032,-500.0,0.00036831,4]
[393878992,1763065767052,-160.0,0.00036837,2]
[393878993,1763065767080,-173.17,0.00036879,3]
[393878994,1763065767101,-159.32,0.00036889,60]
[393878995,1763065767120,-622.37700586,0.00036973,5]
[393878996,1763065767139,-501.66960018,0.00036973,5]
[393878997,1763065767158,-506.24072444,0.00036973,5]
[393878998,1763065767176,-402.97647619,0.00036973,3]
[393878999,1763065767195,-505.95465112,0.00036973,5]
[393879000,1763065767216,-245.68,0.00036986,2]
[393879001,1763065767236,-327.0,0.00036988,2]
[393879002,1763065767256,-159.32,0.00036989,60]
[393879003,1763065767276,-47736.73909396,0.0003699,2]
[393879004,1763065767296,-500.0,0.00037028,15]
[393879005,1763065767315,-1500.0,0.00037029,5]
[393879006,1763065767335,-1500.0,0.00037029,5]
[393879007,1763065767353,-505.08760734,0.00037029,5]
[393879008,1763065767373,-1500.0,0.00037029,5]
[393879009,1763065767392,-1500.0,0.00037029,5]
[393879010,1763065767411,-1500.0,0.00037029,5]
[393879011,1763065767431,-159.32,0.00037089,60]
[393879012,1763065767451,-89240.1977277,0.00037168,3]
[393879013,1763065767470,-969.85759776,0.00037168,3]
[393879014,1763065767490,-44620.0988638,0.00037169,3]
[393879015,1763065767510,-484.92879888,0.00037169,3]
[393879016,1763065767529,-505.18612198,0.00037173,5]
[393879017,1763065767547,-500.0,0.00037173,5]
[393879018,1763065767566,-621.68239698,0.00037173,5]
[393879019,1763065767587,-500.0,0.00037173,5]
[393879020,1763065767606,-500.9181771,0.00037173,5]
[393879021,1763065767625,-500.0,0.00037173,5]
[393879022,1763065767657,-219.34271575,0.00037173,5]
[393879023,1763065767679,-501.5332089,0.00037173,5]
[393879024,1763065767698,-500.0,0.00037173,5]
[393879025,1763065767719,-500.68321036,0.00037173,5]
[393879026,1763065767742,-165.21856476,0.00037173,5]
[393879027,1763065767763,-500.0,0.00037173,5]
[393879028,1763065767782,-172.27365561,0.00037173,5]
[393879029,1763065767801,-520.67360796,0.00037173,5]
[393879030,1763065767820,-453.07507036,0.00037173,5]
[393879031,1763065767841,-151.0,0.00037173,30]
[393879032,1763065767861,-191.355236,0.00037177,31]
[393879033,1763065767882,-151.0,0.00037177,2]
[393879034,1763065767902,-151.0,0.00037177,31]
[393879035,1763065767921,-151.0,0.00037177,31]
[393879036,1763065767943,-151.0,0.00037177,31]
[393879037,1763065767962,-151.0,0.00037178,31]
[393879038,1763065767984,-151.0,0.00037178,31]
[393879039,1763065768008,-181.093957,0.00037178,31]
[393879040,1763065768027,-151.0,0.00037178,2]
[393879041,1763065768049,-151.0,0.00037178,31]
[393879042,1763065768073,-151.0,0.00037178,31]
[393879043,1763065768092,-151.0,0.00037178,31]
[393879044,1763065768113,-151.0,0.00037178,30]
[393879045,1763065768134,-172.472403,0.00037178,31]
[393879046,1763065768154,-151.0,0.00037178,31]
[393879047,1763065768174,-298.790307,0.00037178,31]
[393879048,1763065768193,-151.0,0.00037178,31]
[393879049,1763065768213,-841.908488,0.00037178,31]
[393879050,1763065768232,-298.790307,0.00037178,31]
[393879051,1763065768253,-841.908488,0.00037178,31]
[393879052,1763065768275,-298.790307,0.00037178,31]
[393879053,1763065768297,-841.908488,0.00037178,31]
[393879054,1763065768437,-298.790307,0.00037178,31]
[393879055,1763065768463,-151.0,0.00037178,31]
[393879056,1763065768485,-841.908488,0.00037178,31]
[393879057,1763065768506,-500.0,0.00037187,4]
[393879058,1763065768526,-500.0,0.00037187,4]
[393879059,1763065768547,-500.0,0.00037187,4]
[393879060,1763065768567,-167.19,0.00037188,14]
[393879061,1763065768593,-500.0,0.00037188,4]
[393879062,1763065768614,-500.0,0.00037188,4]
[393879063,1763065768636,-159.32,0.00037189,60]
[393879064,1763065768655,-188.668,0.00037189,47]
[393879065,1763065768674,-542.085339,0.00037189,31]
[393879066,1763065768693,-542.085339,0.00037189,31]
[393879067,1763065768713,-542.085339,0.00037189,31]
[393879068,1763065768737,-542.085339,0.00037189,31]
[393879069,1763065768759,-157.802601,0.00037189,31]
[393879070,1763065768781,-151.0,0.00037189,15]
[393879071,1763065768806,-500.0,0.00037208,4]
[393879072,1763065768831,-44620.0988638,0.00037212,3]
[393879073,1763065768852,-484.92879888,0.00037212,3]
[393879074,1763065768874,-151.0,0.00037216,31]
[393879075,1763065768895,-151.0,0.00037216,31]
[393879076,1763065768916,-181.314044,0.00037216,31]
[393879077,1763065768939,-151.0,0.00037216,30]
[393879078,1763065768959,-151.0,0.00037216,31]
[393879079,1763065768980,-298.790307,0.00037216,31]
[393879080,1763065769004,-841.908488,0.00037216,31]
[393879081,1763065769024,-298.790307,0.00037216,31]
[393879082,1763065769045,-841.908488,0.00037216,31]
[393879083,1763065769064,-298.790307,0.00037216,31]
[393879084,1763065769088,-841.908488,0.00037216,31]
[393879085,1763065769107,-298.790307,0.00037216,31]
[393879086,1763065769128,-151.0,0.00037216,31]
[393879087,1763065769149,-841.908488,0.00037216,31]
[393879088,1763065769176,-159.429616,0.00037219,31]
[393879089,1763065769205,-151.0,0.00037219,31]
[393879090,1763065769226,-156.804028,0.00037219,31]
[393879091,1763065769246,-151.0,0.00037219,31]
[393879092,1763065769266,-156.804028,0.00037219,31]
[393879093,1763065769285,-156.804028,0.00037219,31]
[393879094,1763065769304,-156.804028,0.00037219,31]
[393879095,1763065769327,-246.6382,0.00037219,31]
[393879096,1763065769347,-500.0,0.00037219,2]
[393879097,1763065769367,-500.0,0.00037219,2]
[393879098,1763065769386,-500.0,0.00037219,4]
[393879099,1763065769406,-500.0,0.00037219,4]
[393879100,1763065769427,-500.0,0.00037219,4]
[393879101,1763065769448,-500.0,0.00037219,4]
[393879102,1763065769468,-500.0,0.00037219,2]
[393879103,1763065769488,-500.0,0.00037219,2]
[393879104,1763065769508,-504.92,0.00037219,4]
[393879105,1763065769527,-504.92,0.00037219,4]
[393879106,1763065769548,-484.92879888,0.00037219,3]
[393879107,1763065769567,-151.0,0.0003722,31]
[393879108,1763065769590,-156.804028,0.0003722,31]
[393879109,1763065769609,-151.0,0.0003722,31]
[393879110,1763065769628,-156.804028,0.0003722,31]
[393879111,1763065769647,-156.804028,0.0003722,31]
[393879112,1763065769665,-156.804028,0.0003722,31]
[393879113,1763065769685,-500.0,0.0003722,2]
[393879114,1763065769704,-500.0,0.0003722,2]
[393879115,1763065769722,-500.0,0.0003722,4]
[393879116,1763065769741,-500.0,0.0003722,4]
[393879117,1763065769761,-500.0,0.0003722,4]
[393879118,1763065769781,-500.0,0.0003722,4]
[393879119,1763065769801,-500.0,0.0003722,4]
[393879120,1763065769821,-500.0,0.0003722,2]
[393879121,1763065769860,-500.0,0.0003722,2]
[393879122,1763065769883,-504.92,0.0003722,4]
[393879123,1763065769905,-504.92,0.0003722,4]
[393879124,1763065769925,-151.0,0.00037221,31]
[393879125,1763065769944,-301.999999,0.00037221,31]
[393879126,1763065769966,-542.085339,0.00037221,31]
[393879127,1763065769986,-542.085339,0.00037221,31]
[393879128,1763065770011,-542.085339,0.00037221,31]
[393879129,1763065770031,-542.085339,0.00037221,31]
[393879130,1763065770053,-151.0,0.00037221,15]
[393879131,1763065770077,-151.0,0.00037222,31]
[393879132,1763065770377,-151.0,0.00037222,31]
[393879133,1763065770399,-280.29104,0.00037222,31]
[393879134,1763065770422,-298.790307,0.00037222,31]
[393879135,1763065770444,-841.908488,0.00037222,31]
[393879136,1763065770465,-298.790307,0.00037222,31]
[393879137,1763065770486,-841.908488,0.00037222,31]
[393879138,1763065770505,-298.790307,0.00037222,31]
[393879139,1763065770526,-841.908488,0.00037222,31]
[393879140,1763065770547,-298.790307,0.00037222,31]
[393879141,1763065770568,-162.624441,0.00037222,31]
[393879142,1763065770594,-841.908488,0.00037222,31]
[393879143,1763065770615,-500.0,0.00037229,2]
[393879144,1763065770636,-500.0,0.00037229,2]
[393879145,1763065770657,-500.0,0.00037229,2]
[393879146,1763065770678,-500.0,0.00037229,2]
[393879147,1763065770698,-500.0,0.00037229,2]
[393879148,1763065770718,-500.0,0.00037229,2]
[393879149,1763065770738,-500.0,0.00037229,2]
[393879150,1763065770757,-500.0,0.00037229,4]
[393879151,1763065770777,-500.0,0.00037229,4]
[393879152,1763065770798,-500.0,0.00037229,4]
[393879153,1763065770817,-620.85571295,0.00037229,4]
[393879154,1763065770840,-500.0,0.00037229,2]
[393879155,1763065770860,-500.0,0.00037229,2]
[393879156,1763065770880,-500.0,0.00037229,2]
[393879157,1763065770900,-500.0,0.00037229,2]
[393879158,1763065770922,-500.0,0.00037229,2]
[393879159,1763065770942,-500.0,0.00037229,2]
[393879160,1763065770962,-500.0,0.00037229,2]
[393879161,1763065770983,-504.92,0.00037229,4]
[393879162,1763065771006,-504.92,0.00037229,4]
[393879163,1763065771026,-504.92,0.00037229,4]
[393879164,1763065771157,-504.92,0.00037229,4]
[393879165,1763065771183,-504.92,0.00037229,4]
[393879166,1763065771205,-504.92,0.00037229,4]
[393879167,1763065771227,-504.92,0.00037229,4]
[393879168,1763065771248,-500.71451375,0.00037231,2]
[393879169,1763065771269,-151.0,0.00037232,31]
[393879170,1763065771291,-151.0,0.00037232,31]
[393879171,1763065771310,-151.0,0.00037232,7]
[393879172,1763065771332,-3284.02989909,0.00037232,2]
[393879173,1763065771353,-151.0,0.00037262,31]
[393879174,1763065771373,-151.0,0.00037262,31]
[393879175,1763065771397,-156.804028,0.00037262,31]
[393879176,1763065771416,-151.0,0.00037262,31]
[393879177,1763065771437,-156.804028,0.00037262,31]
[393879178,1763065771456,-156.804028,0.00037262,31]
[393879179,1763065771476,-156.804028,0.00037262,31]
[393879180,1763065771500,-500.0,0.00037262,2]
[393879181,1763065771519,-500.0,0.00037262,2]
[393879182,1763065771539,-500.0,0.00037262,4]
[393879183,1763065771560,-500.0,0.00037262,4]
[393879184,1763065771584,-500.0,0.00037262,4]
[393879185,1763065771604,-500.0,0.00037262,2]
[393879186,1763065771624,-500.0,0.00037262,2]
[393879187,1763065771645,-504.92,0.00037262,4]
[393879188,1763065771666,-504.92,0.00037262,4]
[393879189,1763065771686,-1500.0,0.00037268,5]
[393879190,1763065771706,-1019.49208786,0.00037268,5]
[393879191,1763065771726,-1500.0,0.00037268,5]
[393879192,1763065771745,-1500.0,0.00037268,5]
[393879193,1763065771765,-1500.0,0.00037268,5]
[393879194,1763065771785,-500.0,0.00037272,2]
[393879195,1763065771808,-500.0,0.00037272,4]
[393879196,1763065771831,-607.61389371,0.00037272,2]
[393879197,1763065771851,-504.92,0.00037272,4]
[393879198,1763065771870,-507.54180624,0.00037273,5]
[393879199,1763065771889,-281.53636924,0.00037273,5]
[393879200,1763065771908,-500.0,0.00037273,5]
[393879201,1763065771927,-500.0,0.00037273,5]
[393879202,1763065771945,-500.0,0.00037273,5]
[393879203,1763065771963,-500.0,0.00037273,5]